bitfinex/quotes_ETHUSD_20220105
["timestamp","ask_amount","ask_price","bid_price","bid_amount"]
[1641352429020,1.1256692,3814.2,3814.0,0.6556418]
[1641352429320,1.1256692,3814.2,3814.1,0.00113685]
[1641352429723,0.00086811,3814.4,3814.1,1.31243685]
[1641352429924,0.00086811,3814.4,3814.1,1.96801815]
[1641352430126,0.00086811,3814.4,3814.1,2.26801815]
[1641352430530,0.00086811,3814.4,3814.1,3.57913665]
[1641352430726,0.00086811,3814.4,3814.2,3.26911985]
[1641352430927,0.00086811,3814.4,3814.3,2.19165383]
[1641352431128,0.00086811,3814.4,3814.3,2.49165383]
[1641352432368,0.00086811,3814.4,3814.3,2.79165383]
[1641352432567,0.00086811,3814.4,3814.3,2.49165383]
[1641352432770,0.00086811,3814.4,3814.3,0.3]
[1641352432970,0.00086811,3814.4,3814.3,1.90695615]
[1641352437428,0.00086811,3814.4,3814.2,0.95553]
[1641352439067,0.00086811,3814.4,3814.3,1.94010649]
[1641352439466,0.00086811,3814.4,3814.3,17.35010649]
[1641352439665,0.00227369,3814.7,3814.5,16.0653748]
[1641352439868,0.00227369,3814.7,3814.6,17.54429153]
[1641352440066,3.7546,3815.6,3814.6,17.54429153]
[1641352440269,7.0082,3815.7,3815.3,1.50020395]
[1641352440567,0.00682108,3815.5,3815.3,1.50020395]
[1641352440969,0.00625265,3815.4,3815.3,1.50020395]
[1641352441869,0.00625265,3815.4,3815.3,2.15558955]
[1641352442068,0.00625265,3815.4,3815.3,0.6553856]
[1641352444726,0.00625265,3815.4,3815.3,2.86056243]
[1641352445526,0.00625265,3815.4,3815.3,0.9553856]
[1641352445926,0.00625265,3815.4,3815.3,1.96957439]
[1641352446130,0.00625265,3815.4,3815.3,3.87389677]
[1641352447185,0.00625265,3815.4,3815.3,0.9553856]
[1641352447884,0.00625265,3815.4,3815.3,2.83530811]
[1641352449284,0.00625265,3815.4,3815.3,0.9553856]
[1641352449685,0.00625265,3815.4,3815.3,2.86522272]
[1641352449888,0.00625265,3815.4,3815.3,0.9553856]
[1641352452118,1.25854249,3816.2,3815.3,0.6553856]
[1641352452319,1.25854249,3816.2,3815.7,0.65542]
[1641352452520,0.00397897,3816.1,3815.7,0.65542]
[1641352452919,0.00341054,3816.0,3815.2,3.9323131]
[1641352453218,0.00284212,3815.9,3815.2,3.9323131]
[1641352453621,0.0022737,3815.8,3815.2,3.9323131]
[1641352454073,0.00170527,3815.7,3815.2,3.9323131]
[1641352454474,0.00113685,3815.6,3815.2,3.9323131]
[1641352454676,1.34698241,3815.6,3815.4,0.65547]
[1641352454874,1.34584556,3815.6,3815.4,0.65547]
[1641352457925,1.34584556,3815.6,3815.4,1.3108897]
[1641352458623,1.34584556,3815.6,3815.4,0.65547]
[1641352462077,0.00284212,3815.9,3815.4,0.65547]
[1641352462278,0.00284212,3815.9,3815.6,1.3107816]
[1641352462479,0.0022737,3815.8,3815.7,0.65539]
[1641352467328,0.0022737,3815.8,3815.4,1.3109207]
[1641352467528,0.0022737,3815.8,3815.4,0.65547]
[1641352467729,0.00170527,3815.7,3815.4,0.65547]
[1641352468128,0.00113685,3815.6,3815.4,0.65547]
[1641352468528,1.30577157,3816.0,3815.4,1.3109219]
[1641352468529,0.65831212,3815.9,3815.4,1.3109219]
[1641352468970,0.0022737,3815.8,3815.4,1.3109219]
[1641352469171,0.00321142,3815.8,3815.4,1.3109219]
[1641352469370,0.00170527,3815.7,3815.4,1.3109219]
[1641352469775,0.00113685,3815.6,3815.4,1.3109219]
[1641352470176,0.00170527,3815.7,3815.4,1.3109219]
[1641352470578,0.00113685,3815.6,3815.4,1.3109219]
[1641352470976,0.00170527,3815.7,3815.4,1.3108973]
[1641352471376,0.00113685,3815.6,3815.4,1.3108973]
[1641352471675,0.00170527,3815.7,3815.4,0.65547]
[1641352472079,0.00113685,3815.6,3815.4,0.65547]
[1641352472476,0.00170527,3815.7,3815.4,0.65547]
[1641352472935,0.00113685,3815.6,3815.4,0.65547]
[1641352473331,0.00170527,3815.7,3815.4,0.65547]
[1641352473732,0.00113685,3815.6,3815.4,0.65547]
[1641352474135,0.00170527,3815.7,3815.4,0.65547]
[1641352474538,0.00113685,3815.6,3815.4,0.65547]
[1641352474936,0.00170527,3815.7,3815.4,0.65547]
[1641352475338,0.00113685,3815.6,3815.4,0.65547]
[1641352475537,0.00113685,3815.6,3815.4,1.3109]
[1641352475738,0.00170527,3815.7,3815.4,1.3109]
[1641352476139,0.00113685,3815.6,3815.4,1.3109]
[1641352476577,0.00170527,3815.7,3815.4,1.9663418]
[1641352476976,0.00113685,3815.6,3815.4,1.9663418]
[1641352477378,0.00170527,3815.7,3815.4,1.9663418]
[1641352477877,0.00113685,3815.6,3815.4,2.2663418]
[1641352478078,0.00113685,3815.6,3815.4,1.9663418]
[1641352478276,0.00170527,3815.7,3815.4,1.9663418]
[1641352478676,0.00113685,3815.6,3815.4,1.9663418]
[1641352479077,0.00170527,3815.7,3815.4,1.9663418]
[1641352479482,0.00113685,3815.6,3815.4,1.9663418]
[1641352479882,0.00093772,3815.8,3815.5,1.88788661]
[1641352479883,0.00170527,3815.7,3815.5,1.88788661]
[1641352480322,0.00113685,3815.6,3815.5,1.88788661]
[1641352480523,0.00113685,3815.6,3815.4,3.2770739]
[1641352482533,0.00113685,3815.6,3815.4,1.9663418]
[1641352483732,0.00113685,3815.6,3815.5,2.02678435]
[1641352486981,0.00113685,3815.6,3815.5,2.32678435]
[1641352487183,0.00113685,3815.6,3815.5,3.32678435]
[1641352490227,0.00206317,3815.6,3815.5,3.32678435]
[1641352493973,0.00206317,3815.6,3815.5,2.02678435]
[1641352494173,0.00206317,3815.6,3815.5,2.32678435]
[1641352494773,0.00206317,3815.6,3815.5,2.02678435]
[1641352495224,1.18426236,3816.8,3816.0,0.6553]
[1641352495425,1.18426236,3816.8,3816.0,1.3106]
[1641352495627,0.00625266,3816.7,3815.8,1.89183758]
[1641352495827,0.00625266,3816.7,3815.8,1.96565]
[1641352496023,0.00568424,3816.6,3815.9,1.88026452]
[1641352496224,0.00568424,3816.6,3815.9,1.88680321]
[1641352496427,0.00511581,3816.5,3816.2,1.31051]
[1641352496628,0.00511581,3816.5,3816.2,1.96578]
[1641352496827,1.18426236,3816.8,3816.2,1.96578]
[1641352496828,0.00454739,3816.4,3816.2,1.96578]
[1641352497130,0.00397897,3816.3,3816.2,1.31051]
[1641352500373,0.00397897,3816.3,3816.1,1.31052]
[1641352500775,0.00341054,3816.2,3816.1,1.31052]
[1641352501177,0.00341054,3816.2,3815.9,0.6554]
[1641352501376,0.00341054,3816.2,3815.7,1.2448]
[1641352501579,0.00284212,3816.1,3815.5,1.33231124]
[1641352501780,0.00284212,3816.1,3815.5,0.02155124]
[1641352502078,0.00227369,3816.0,3815.5,0.02155124]
[1641352502477,1.02979039,3815.6,3815.5,0.02155124]
[1641352503123,1.17234212,3816.1,3815.5,0.02155124]
[1641352503323,0.00284212,3816.1,3815.4,0.65546]
[1641352503527,0.00227369,3816.0,3815.4,0.65546]
[1641352503922,0.00090351,3816.3,3815.4,0.65546]
[1641352503923,0.00170527,3815.9,3815.4,0.65546]
[1641352504124,1.17168223,3815.7,3815.4,0.65546]
[1641352504923,1.17168223,3815.7,3815.4,1.31088]
[1641352505126,0.00113685,3815.8,3815.4,1.31088]
[1641352506032,0.00113685,3815.8,3815.6,1.31064]
[1641352507678,0.00113685,3815.8,3815.7,1.88685817]
[1641352507879,0.00113685,3815.8,3815.7,1.89746056]
[1641352509277,0.00113685,3815.8,3815.6,1.96594]
[1641352509479,0.00113685,3815.8,3815.7,0.04739478]
[1641352514574,0.00113685,3815.8,3815.7,0.70267478]
[1641352515377,0.00113685,3815.8,3815.7,0.04739478]
[1641352517627,1.12167922,3815.8,3815.7,0.04739478]
[1641352518626,1.12252551,3815.8,3815.7,0.04739478]
[1641352521033,1.77798551,3815.8,3815.7,0.04739478]
[1641352523182,3.82651582,3815.8,3815.7,0.04739478]
[1641352523582,1.77798551,3815.8,3815.7,0.04739478]
[1641352524186,1.12252551,3815.8,3815.7,0.04739478]
[1641352526128,0.00198314,3815.8,3815.7,0.04739478]
[1641352526333,4.49792,3816.7,3815.8,0.03586973]
[1641352526533,0.03098603,3817.3,3816.0,1.31049]
[1641352526735,0.03098603,3817.3,3815.8,2.39129449]
[1641352526931,0.03098603,3817.3,3817.0,1.14324078]
[1641352528133,0.03098603,3817.3,3817.0,0.65516]
[1641352528334,0.03098603,3817.3,3816.9,1.31031]
[1641352528736,0.03098603,3817.3,3816.9,1.96547]
[1641352529380,0.0009067,3817.2,3816.9,1.96547]
[1641352529777,0.0009067,3817.2,3817.1,0.65518]
[1641352530176,0.00886463,3817.2,3817.1,0.65518]
[1641352532186,0.00886463,3817.2,3817.1,0.67890677]
[1641352532387,0.00886463,3817.2,3817.1,0.70257478]
[1641352533034,0.00886463,3817.2,3817.1,0.69677478]
[1641352533436,0.00886463,3817.2,3817.1,1.86255021]
[1641352534835,0.00886463,3817.2,3817.1,2.16255021]
[1641352535735,0.00886463,3817.2,3817.1,4.34767424]
[1641352536580,0.00886463,3817.2,3817.1,2.16255021]
[1641352536779,0.00886463,3817.2,3817.1,1.86255021]
[1641352537183,0.00886463,3817.2,3817.1,4.0911141]
[1641352537782,0.00886463,3817.2,3817.1,2.16255021]
[1641352537982,0.00886463,3817.2,3817.1,4.05317356]
[1641352538982,0.00886463,3817.2,3817.1,4.35317356]
[1641352539184,0.38197098,3818.8,3818.4,0.77795527]
[1641352539387,0.38197098,3818.8,3818.5,2.71032476]
[1641352539583,0.38197098,3818.8,3818.5,2.80623]
[1641352539786,0.38197098,3818.8,3818.6,1.02366801]
[1641352539787,0.38295415,3818.8,3818.6,1.02366801]
[1641352539984,0.38295415,3818.8,3818.6,1.04739478]
[1641352540232,0.33295415,3818.8,3818.6,1.04739478]
[1641352540429,0.32251666,3819.0,3818.8,2.2]
[1641352540628,0.32251666,3819.0,3818.9,15.792]
[1641352541026,0.0602,3820.5,3819.5,1.30927]
[1641352541230,5.553256,3820.9,3819.8,1.30927]
[1641352541231,4.7986,3820.9,3819.8,1.30927]
[1641352541435,0.01818955,3820.4,3819.8,1.30927]
[1641352541834,0.01762112,3820.3,3820.1,0.65465]
[1641352542037,0.01762112,3820.3,3820.2,2.06184888]
[1641352542337,0.02330536,3821.3,3820.5,1.30894]
[1641352542535,1.23377572,3822.0,3820.9,1.05027784]
[1641352542732,1.23377572,3822.0,3820.5,2.21764]
[1641352542733,0.02387378,3821.4,3820.5,2.21764]
[1641352543234,0.02330536,3821.3,3820.8,1.30887]
[1641352543433,0.02330536,3821.3,3821.1,0.65443]
[1641352543632,0.02273693,3821.2,3821.1,0.65443]
[1641352543931,0.70452423,3822.1,3821.0,2.16063027]
[1641352544128,0.00450649,3821.2,3821.0,2.16063027]
[1641352544628,0.00450649,3821.2,3821.0,2.81497027]
[1641352545030,3.65832139,3821.6,3821.1,3.08551689]
[1641352545226,0.00116492,3821.6,3821.2,4.882]
[1641352545426,0.13663858,3823.2,3822.1,0.0011]
[1641352545628,4.66670381,3824.8,3822.5,0.65418]
[1641352545629,0.6541723,3823.9,3822.5,0.65418]
[1641352545827,11.1346526,3824.2,3823.4,1.40916891]
[1641352545828,1.19262848,3824.0,3823.4,1.40916891]
[1641352546025,6.14,3824.2,3823.4,2.24056891]
[1641352546229,0.01421058,3824.0,3823.4,0.8314]
[1641352546626,0.01364216,3823.9,3823.4,0.8314]
[1641352546828,6.15364216,3823.9,3823.4,0.8314]
[1641352547029,6.15364216,3823.9,3823.5,2.44384888]
[1641352547030,0.01307373,3823.8,3823.5,2.44384888]
[1641352547232,0.01307373,3823.8,3823.6,1.99261374]
[1641352547430,0.00612904,3824.1,3823.8,0.6539]
[1641352547637,0.00612904,3824.1,3823.8,1.0359]
[1641352547836,0.00113685,3824.0,3823.8,1.0359]
[1641352548135,0.00113685,3824.0,3822.8,0.382]
[1641352548541,0.00113685,3824.0,3822.9,1.31314581]
[1641352548739,1.0846944,3823.3,3822.9,1.31314581]
[1641352548941,1.0846944,3823.3,3823.0,1.43115789]
[1641352549244,1.0846944,3823.3,3823.1,0.00397896]
[1641352549639,1.0846944,3823.3,3822.4,0.00795792]
[1641352549843,2.06184888,3823.2,3822.4,0.00795792]
[1641352550039,1.20592337,3822.5,3822.2,0.00909477]
[1641352550243,2.66184888,3823.3,3822.3,1.07109455]
[1641352550244,0.00135903,3823.3,3822.3,1.07109455]
[1641352550439,0.00135903,3823.3,3822.6,0.04739478]
[1641352550844,0.00135903,3823.3,3822.7,0.00625265]
[1641352551245,1.40712385,3823.2,3822.7,0.00625265]
[1641352551493,0.00135903,3823.3,3822.8,0.382]
[1641352551689,0.00135903,3823.3,3822.8,2.44384888]
[1641352551888,0.00135903,3823.3,3822.9,0.00511581]
[1641352551889,5.903e-05,3823.3,3822.9,0.00511581]
[1641352552091,5.903e-05,3823.3,3823.0,1.39322096]
[1641352552290,5.903e-05,3823.3,3823.2,4.46213396]
[1641352552490,0.00113685,3824.0,3823.2,6.90598284]
[1641352552688,0.00113685,3824.0,3823.7,4.771]
[1641352552892,0.00113685,3824.0,3823.8,0.382]
[1641352554592,0.00113685,3824.0,3823.3,1.31066211]
[1641352554791,0.00113685,3824.0,3823.3,1.61066211]
[1641352554990,0.00113685,3824.0,3823.4,0.00227369]
[1641352555626,0.00113685,3824.0,3823.7,0.02366801]
[1641352555828,0.00113685,3824.0,3823.8,15.792]
[1641352556229,0.00113685,3824.0,3823.8,0.682]
[1641352556432,0.00113685,3824.0,3823.9,5.45]
[1641352556639,0.00113685,3824.0,3823.9,2.61689901]
[1641352556833,0.00612904,3824.1,3823.9,1.61689901]
[1641352557632,0.00612904,3824.1,3823.9,2.61689901]
[1641352557936,0.00612904,3824.1,3823.9,1.61689901]
[1641352558133,0.00612904,3824.1,3824.0,1.0]
[1641352558331,0.00612904,3824.1,3824.0,0.382]
[1641352559781,0.00612904,3824.1,3823.7,0.04739478]
[1641352559782,3.10612904,3824.1,3823.7,0.04739478]
[1641352559983,0.60612904,3824.1,3823.7,0.04739478]
[1641352560181,0.60612904,3824.1,3823.8,0.00113685]
[1641352560182,1.0,3824.0,3823.8,0.00113685]
[1641352560383,2.90612904,3824.1,3823.8,0.00113685]
[1641352561082,2.786e-05,3824.0,3823.8,0.00113685]
[1641352561285,1.5,3824.7,3823.5,1.48097286]
[1641352561286,1.0270775,3825.5,3824.0,4.45]
[1641352561488,1.0270775,3825.5,3824.7,0.01240172]
[1641352561686,1.0270775,3825.5,3824.8,0.382]
[1641352561885,1.0270775,3825.5,3824.8,1.2306]
[1641352562087,1.0270775,3825.5,3824.8,2.62045063]
[1641352562286,1.0270775,3825.5,3824.8,2.57045063]
[1641352562729,1.0270775,3825.5,3825.0,0.65368]
[1641352562927,1.0270775,3825.5,3824.8,0.332]
[1641352563727,2.20195127,3825.5,3824.8,0.98573]
[1641352564628,2.20195127,3825.5,3824.8,2.13528242]
[1641352565027,2.50195127,3825.5,3824.8,0.98573]
[1641352565227,2.50195127,3825.5,3824.8,0.332]
[1641352565529,2.20195127,3825.5,3824.8,0.332]
[1641352565826,2.50195127,3825.5,3824.8,0.332]
[1641352566030,2.20195127,3825.5,3825.2,0.02366801]
[1641352566228,2.50195127,3825.5,3825.2,0.04739478]
[1641352567080,2.20195127,3825.5,3825.2,0.04739478]
[1641352567681,2.50195127,3825.5,3825.2,0.04739478]
[1641352568381,2.45195127,3825.5,3825.2,0.04739478]
[1641352568984,5.05195127,3825.5,3825.2,0.04739478]
[1641352569490,1.0,3825.4,3825.2,9.478e-05]
[1641352569685,6.97810026,3825.3,3823.6,0.00227369]
[1641352569887,2.02810026,3825.2,3823.6,0.00227369]
[1641352570136,3.32810026,3825.2,3823.4,0.00341054]
[1641352570336,0.00625266,3825.1,3823.7,1.12388102]
[1641352570536,1.14318424,3824.2,3823.4,0.00341054]
[1641352570737,1.14318424,3824.2,3823.8,0.00113685]
[1641352570936,1.14318424,3824.2,3823.4,0.00341054]
[1641352571642,0.00116315,3824.1,3823.2,1.33398061]
[1641352572043,0.00116315,3824.1,3823.3,0.00397896]
[1641352572242,0.00116315,3824.1,3823.3,3.27920623]
[1641352572442,0.00116315,3824.1,3823.7,0.6538]
[1641352572642,0.00116315,3824.1,3823.4,16.71782]
[1641352572643,0.00116315,3824.1,3823.8,0.382]
[1641352572843,0.00116315,3824.1,3823.9,0.382]
[1641352573884,0.00116315,3824.1,3823.9,1.03586]
[1641352574383,1.26178795,3824.9,3823.9,1.03586]
[1641352574683,1.26178795,3824.9,3823.9,2.36917476]
[1641352574684,0.00454739,3824.8,3823.9,2.36917476]
[1641352575085,0.00397897,3824.7,3823.9,2.36917476]
[1641352575284,0.00397897,3824.7,3823.9,1.03586]
[1641352575483,0.26519849,3824.9,3823.9,1.03586]
[1641352575683,0.26519849,3824.9,3823.9,3.02404239]
[1641352575885,0.00113685,3824.8,3824.2,0.65387]
[1641352576287,0.00113685,3824.8,3824.3,0.00170527]
[1641352576691,1.17976169,3825.3,3824.3,0.00170527]
[1641352576892,1.17976169,3825.3,3824.3,0.00284212]
[1641352577291,1.47976169,3825.3,3824.3,0.00284212]
[1641352577947,1.20541752,3824.5,3824.3,0.00284212]
[1641352578344,1.20541752,3824.5,3823.9,0.00511581]
[1641352579949,1.20541752,3824.5,3824.1,0.65392]
[1641352580148,0.00341054,3825.4,3824.1,0.65392]
[1641352580350,0.00341054,3825.4,3824.2,0.00341054]
[1641352580650,2.6,3824.5,3824.2,0.00341054]
[1641352580951,2.9,3824.5,3824.2,0.00341054]
[1641352581376,2.9,3824.5,3823.1,0.65409]
[1641352581377,2.9,3824.5,3823.1,0.6637532]
[1641352581584,2.9,3824.5,3823.2,0.00909478]
[1641352581780,2.6,3824.5,3823.2,0.00909478]
[1641352581982,1.13126266,3823.9,3823.2,0.00909478]
[1641352582684,2.60104524,3824.5,3823.2,0.00909478]
[1641352583085,3.55510524,3824.5,3823.1,0.0096632]
[1641352583284,3.05510524,3824.5,3823.2,1.19641588]
[1641352583485,1.23116395,3824.1,3823.6,0.65401]
[1641352583985,1.23116395,3824.1,3823.7,0.00625266]
[1641352584887,1.23116395,3824.1,3823.6,0.61026266]
[1641352585128,0.00170527,3824.0,3823.2,1.30796]
[1641352585526,0.00113685,3823.9,3823.3,0.00227369]
[1641352585926,0.00170527,3824.0,3823.4,0.65404]
[1641352586327,0.00113685,3823.9,3823.5,0.00113685]
[1641352586733,0.00170527,3824.0,3823.5,0.00113685]
[1641352587130,0.00113685,3823.9,3823.5,0.00113685]
[1641352587632,1.23116395,3824.1,3823.5,0.00113685]
[1641352587633,0.00170527,3824.0,3823.5,0.00113685]
[1641352588031,0.00113685,3823.9,3823.5,0.00113685]
[1641352588432,0.00170527,3824.0,3823.5,0.00113685]
[1641352588894,0.00113685,3823.9,3823.5,0.00113685]
[1641352589083,0.00113685,3823.9,3823.6,0.382]
[1641352589286,0.00397897,3824.4,3823.8,4.46210646]
[1641352589482,0.00397897,3824.4,3823.9,0.382]
[1641352589682,0.00341054,3824.3,3823.9,0.382]
[1641352590084,0.00284212,3824.2,3823.9,1.68963]
[1641352590484,0.0022737,3824.1,3823.9,1.68963]
[1641352590683,0.0022737,3824.1,3823.9,2.99726]
[1641352590884,2.40104524,3824.5,3823.9,2.99726]
[1641352590885,1.18164543,3824.0,3823.9,2.99726]
[1641352591090,1.18164543,3824.0,3823.4,0.00170527]
[1641352591289,1.18391913,3824.0,3823.4,0.00170527]
[1641352591488,0.00113685,3823.9,3823.4,0.00170527]
[1641352591896,0.00113685,3823.9,3823.4,1.30961527]
[1641352592093,0.00113685,3823.9,3823.6,0.65395]
[1641352592926,0.00113685,3823.9,3823.5,0.00113685]
[1641352592927,0.0010283,3823.8,3823.5,0.00113685]
[1641352593228,0.0010283,3823.8,3823.1,0.00341054]
[1641352593628,0.0010283,3823.8,3822.4,0.0073895]
[1641352593828,1.0276693,3823.0,3822.9,0.65412]
[1641352594029,0.6551683,3823.8,3822.9,0.65412]
[1641352594227,0.6551683,3823.8,3822.9,0.65866739]
[1641352594433,0.6551683,3823.8,3823.0,0.00397896]
[1641352594628,0.0010283,3823.8,3823.0,2.00397896]
[1641352594829,0.0010283,3823.8,3823.0,0.00397896]
[1641352595029,1.01960131,3823.7,3823.1,0.65748054]
[1641352595230,1.01960131,3823.7,3823.1,0.65407]
[1641352595430,1.01960131,3823.7,3823.2,0.00284212]
[1641352596030,1.01960131,3823.7,3823.1,0.00341054]
[1641352596687,1.01960131,3823.7,3823.3,0.65403]
[1641352597092,1.01960131,3823.7,3823.4,0.00170527]
[1641352597889,1.01960131,3823.7,3823.1,0.00341054]
[1641352598793,1.01960131,3823.7,3823.2,0.65408]
[1641352600232,3.61960131,3823.7,3823.2,0.65408]
[1641352601536,3.61960131,3823.7,3823.3,2.51454775]
[1641352601537,2.6,3823.7,3823.3,2.51454775]
[1641352601737,0.0955,3823.7,3823.3,1.98981]
[1641352601934,0.0955,3823.7,3823.4,0.65558527]
[1641352602139,0.0955,3823.7,3823.5,0.382]
[1641352602335,0.0955,3823.7,3823.5,0.38313685]
[1641352603741,0.0955,3823.7,3823.5,1.03701685]
[1641352604483,0.0955,3823.7,3823.6,1.96289479]
[1641352604684,0.0955,3823.7,3823.6,0.382]
[1641352604883,0.0955,3823.7,3823.6,2.34793329]
[1641352605080,0.0955,3823.7,3823.6,2.37335301]
[1641352607935,0.0955,3823.7,3823.6,0.382]
[1641352610341,0.0955,3823.7,3823.6,4.03586755]
[1641352610544,0.00113685,3823.9,3823.7,19.86]
[1641352610743,0.00113685,3823.9,3823.8,15.792]
[1641352610942,0.00113685,3823.9,3823.8,16.092]
[1641352611141,3.2241,3825.3,3823.9,4.45]
[1641352611396,3.9724,3825.7,3824.6,1.20491004]
[1641352611397,1.14194798,3825.1,3824.6,1.20491004]
[1641352611899,1.14194798,3825.1,3824.8,0.65377]
[1641352612699,1.14194798,3825.1,3824.8,1.30754]
[1641352614101,0.00105079,3825.0,3824.8,1.30754]
[1641352614501,0.00568423,3824.9,3824.8,1.30754]
[1641352615734,0.00568423,3824.9,3824.8,0.65377]
[1641352618035,0.00568423,3824.9,3824.8,2.05262734]
[1641352620389,2.60568423,3824.9,3824.8,2.05262734]
[1641352620787,2.60568423,3824.9,3824.8,3.05262734]
[1641352620988,0.00105079,3825.0,3824.8,3.05262734]
[1641352620989,0.00105079,3825.0,3824.8,6.02254488]
[1641352621189,0.00105079,3825.0,3824.9,2.01267734]
[1641352621389,0.00105079,3825.0,3824.9,15.792]
[1641352621590,0.00105079,3825.0,3824.9,16.792]
[1641352621988,0.00105079,3825.0,3824.9,18.11198669]
[1641352622192,0.00105079,3825.0,3824.9,2.08398669]
[1641352622389,0.00105079,3825.0,3824.9,1.03557]
[1641352624634,0.00105079,3825.0,3824.9,2.9631564]
[1641352625739,0.00105079,3825.0,3824.9,3.2631564]
[1641352625936,0.00105079,3825.0,3824.9,19.6731564]
[1641352626135,0.00105079,3825.0,3824.9,19.9731564]
[1641352626378,1.33649705,3826.1,3825.1,0.65358]
[1641352626579,1.33649705,3826.1,3825.3,1.60718]
[1641352626780,1.33649705,3826.1,3825.4,2.4391342]
[1641352626979,1.33649705,3826.1,3825.4,2.3118076]
[1641352627180,0.79682338,3825.5,3825.4,2.3118076]
[1641352627380,0.79682338,3825.5,3825.4,0.382]
[1641352628685,0.79682338,3825.5,3825.3,0.65359]
[1641352629081,0.79682338,3825.5,3825.0,0.02101601]
[1641352629082,0.00284212,3825.4,3825.0,0.67480601]
[1641352629482,0.0022737,3825.3,3825.0,0.67480601]
[1641352629680,1.4221268,3825.2,3825.0,0.67480601]
[1641352629882,0.00170527,3825.2,3825.0,0.67480601]
[1641352630149,0.79341284,3825.5,3825.0,0.67480601]
[1641352630150,0.79341284,3825.5,3825.2,0.65365]
[1641352630341,0.79341284,3825.5,3825.3,0.65364]
[1641352630541,0.00284212,3825.4,3825.3,0.65364]
[1641352630945,1.29271,3825.2,3825.1,2.9966]
[1641352631246,1.29441527,3825.2,3825.1,2.9966]
[1641352632348,0.00170527,3825.2,3825.1,2.9966]
[1641352632548,0.00170527,3825.2,3825.1,1.6893]
[1641352633153,0.00170527,3825.2,3825.0,0.02101601]
[1641352633350,0.00170527,3825.2,3824.8,1.30751]
[1641352633554,0.00113685,3825.1,3825.0,0.65377]
[1641352634386,0.00113685,3825.1,3825.0,1.73209074]
[1641352634986,0.00113685,3825.1,3825.0,0.65377]
[1641352638633,0.00113685,3825.1,3825.0,2.71055462]
[1641352639433,0.00113685,3825.1,3825.0,0.65377]
[1641352640034,0.00113685,3825.1,3825.0,3.04263336]
[1641352640435,0.00113685,3825.1,3825.0,1.03577]
[1641352640634,0.00113685,3825.1,3825.0,2.92892995]
[1641352641488,0.00113685,3825.1,3825.0,2.94707222]
[1641352641686,0.00113685,3825.1,3825.0,1.03577]
[1641352643586,0.00113685,3825.1,3825.0,2.93143496]
[1641352643785,0.00113685,3825.1,3825.0,1.03577]
[1641352652748,0.13649357,3826.9,3825.8,0.65361]
[1641352652945,3.2026,3827.0,3826.6,0.01294085]
[1641352653148,1.2022,3827.8,3826.7,0.382]
[1641352653149,0.007,3827.8,3826.7,0.382]
[1641352653543,0.01080005,3827.0,3826.7,0.382]
[1641352653747,0.01080005,3827.0,3826.9,1.32642841]
[1641352653945,1.26727515,3827.2,3826.9,1.32642841]
[1641352654147,0.007,3827.8,3827.0,1.96013]
[1641352654347,0.007,3827.8,3827.2,1.30658]
[1641352654544,0.007,3827.8,3827.3,0.382]
[1641352655145,1.09066956,3827.7,3827.4,0.6533]
[1641352655344,0.94189954,3827.7,3827.3,1.3066]
[1641352655544,0.01421059,3827.6,3827.3,1.3066]
[1641352655944,0.01364216,3827.5,3827.3,1.3066]
[1641352656399,0.01307374,3827.4,3827.3,0.65338]
[1641352656604,0.01307374,3827.4,3827.1,1.3068]
[1641352657007,0.01250532,3827.3,3827.1,1.3068]
[1641352657406,0.94189954,3827.7,3827.1,1.3068]
[1641352657407,0.01193689,3827.2,3827.1,1.3068]
[1641352663892,0.01193689,3827.2,3827.1,1.20788375]
[1641352665787,0.0131271,3827.2,3827.1,1.20788375]
[1641352666395,0.0131271,3827.2,3827.1,3.14096305]
[1641352666795,0.0131271,3827.2,3827.1,1.20788375]
[1641352668851,0.0131271,3827.2,3826.7,0.0207904]
[1641352669152,0.01136847,3827.1,3826.7,0.0207904]
[1641352669550,0.01080005,3827.0,3826.7,0.0207904]
[1641352669952,0.01023162,3826.9,3826.7,0.0207904]
[1641352670151,1.0470637,3826.8,3826.7,0.0207904]
[1641352670351,1.0567269,3826.8,3826.7,0.0207904]
[1641352671385,1.0567269,3826.8,3826.4,0.65357]
[1641352671786,0.00909478,3826.7,3826.3,0.02079127]
[1641352671985,0.00909478,3826.7,3826.3,0.67437127]
[1641352672186,0.00852635,3826.6,3826.3,0.67437127]
[1641352672586,0.00795793,3826.5,3826.3,0.67437127]
[1641352672987,0.0073895,3826.4,3826.3,0.67437127]
[1641352673187,0.0073895,3826.4,3826.3,0.65358]
[1641352673388,0.0073895,3826.4,3825.8,2.61432]
[1641352673590,0.0073895,3826.4,3826.0,0.65363]
[1641352673789,0.00682108,3826.3,3825.8,1.3072]
[1641352673990,0.68662108,3826.3,3825.5,0.0011]
[1641352674189,0.65997266,3826.2,3825.5,0.0011]
[1641352674390,1.20586474,3826.1,3825.5,0.0011]
[1641352674592,1.21154897,3826.1,3825.5,0.0011]
[1641352674790,0.00511581,3826.0,3825.5,0.0011]
[1641352675243,0.00454739,3825.9,3825.5,0.0011]
[1641352675643,0.00397896,3825.8,3825.5,0.65481]
[1641352676241,0.00500982,3825.8,3825.5,0.65481]
[1641352677753,0.00500982,3825.8,3825.5,0.0011]
[1641352678149,2.33154274,3825.8,3825.5,0.0011]
[1641352678347,7.0008543,3825.8,3825.7,3.27e-05]
[1641352678547,11.7984543,3825.8,3825.7,3.27e-05]
[1641352678747,11.7984543,3825.8,3825.3,0.02079344]
[1641352678748,4.45,3825.6,3823.3,4.1635]
[1641352678999,4.45,3825.6,3823.6,1.3078]
[1641352679000,1.21444573,3824.0,3823.6,1.3078]
[1641352679197,1.21444573,3824.0,3823.5,0.00909478]
[1641352679598,1.21444573,3824.0,3823.4,0.0096632]
[1641352680196,1.21444573,3824.0,3823.4,1.30795]
[1641352681001,1.21444573,3824.0,3823.1,0.01136847]
[1641352681002,2.03274573,3824.0,3823.1,0.01136847]
[1641352681305,2.03274573,3824.0,3822.6,0.01421059]
[1641352681306,2.01069022,3823.9,3822.6,0.01421059]
[1641352681501,2.33274573,3824.0,3822.6,0.01421059]
[1641352681502,4.50193595,3824.0,3822.6,0.01421059]
[1641352681702,4.50193595,3824.0,3822.3,0.01591586]
[1641352681703,1.43195073,3823.6,3822.3,0.01591586]
[1641352681905,0.65425,3823.3,3822.3,0.01591586]
[1641352682304,1.09244997,3823.3,3822.2,0.01648428]
[1641352682501,0.43819997,3823.3,3822.2,0.01648428]
[1641352682942,0.6543,3823.0,3822.2,0.01648428]
[1641352683540,2.13250029,3822.9,3822.2,0.01648428]
[1641352684443,3.2543,3823.0,3822.2,0.01648428]
[1641352684643,4.2086112,3823.0,3822.2,0.01648428]